Portfolio,Expense Area,Cost Centre,Expense Type,Account Code,Amount,Supplier Name,SupplierId,Pay Date,Transaction No.
Resources & Corporate Governance ,Domestic Waste Collection,WWC00,Vehicle Repair and Maintenance,0200,40.28,Arrow Engineering Supply Co Ltd,100016,12/04/2012,10165909
Resources & Corporate Governance ,Grounds Maintenance,WGM00,Materials,0303,7.80,Arrow Engineering Supply Co Ltd,100016,12/04/2012,10165909
Resources & Corporate Governance ,Grounds Maintenance,WGM00,Tools,0304,107.51,Arrow Engineering Supply Co Ltd,100016,12/04/2012,10165909
Resources & Corporate Governance,Handy man,WHM00,Tools,0304,50.00,Arrow Engineering Supply Co Ltd,100016,12/04/2012,10165909
Resources & Corporate Governance ,Street Cleansing,WSC00,Tools,0304,16.42,Arrow Engineering Supply Co Ltd,100016,12/04/2012,10165909
Resources & Corporate Governance ,Garage Internal,WVR01,Tools,0304,184.76,Arrow Engineering Supply Co Ltd,100016,12/04/2012,10165909
Resources & Corporate Governance ,Domestic Waste Collection,WWC00,Tools,0304,31.14,Arrow Engineering Supply Co Ltd,100016,12/04/2012,10165909
Resources & Corporate Governance ,General Financial Services,GFS00,External Contractor & Operator,0742,9250.00,Audit Commission,100020,26/04/2012,10166510
Housing Revenue Account ,Unplanned Maintenance and Repair,UMR00,R&M External Contractors,0100,4103.49,AWM Electrical Contractors Ltd,100051,19/04/2012,10166389
Capital Program ,Rewiring,HCE20,Capital Contract Payments,5000,1613.00,AWM Electrical Contractors Ltd,100051,19/04/2012,10166389
Housing Revenue Account ,Unplanned Maintenance and Repair,UMR00,R&M External Contractors,0100,1304.23,AWM Electrical Contractors Ltd,100051,19/04/2012,10166390
Housing Revenue Account ,Unplanned Maintenance and Repair,UMR00,R&M External Contractors,0100,2600.00,AWM Electrical Contractors Ltd,100051,19/04/2012,10166394
Housing Revenue Account ,Unplanned Maintenance and Repair,UMR00,R&M External Contractors,0100,1200.72,AWM Electrical Contractors Ltd,100051,19/04/2012,10166395
Housing Revenue Account ,Electrical Inspections,UMR04,R&M External Contractors,0100,48.00,AWM Electrical Contractors Ltd,100051,19/04/2012,10166395
Housing Revenue Account ,Unplanned Maintenance and Repair,UMR00,R&M External Contractors,0100,1900.47,AWM Electrical Contractors Ltd,100051,19/04/2012,10166396
Housing Revenue Account ,Unplanned Maintenance and Repair,UMR00,R&M External Contractors,0100,2186.74,AWM Electrical Contractors Ltd,100051,26/04/2012,10166700
Housing Revenue Account ,Unplanned Maintenance and Repair,UMR00,R&M External Contractors,0100,2987.02,AWM Electrical Contractors Ltd,100051,26/04/2012,10166753
Resources & Corporate Governance ,General Administration,WAD00,Professional Subscriptions,0017,2021.00,APSE,100052,19/04/2012,10166034
Housing Revenue Account ,Unplanned Maintenance and Repair,UMR00,R&M External Contractors,0100,194.86,Andy Woods Landscapes,100078,19/04/2012,10166319
Housing Revenue Account ,Property Maintenance,MAN23,Estates,0457,527.03,Andy Woods Landscapes,100078,19/04/2012,10166319
Housing Revenue Account ,Unplanned Maintenance and Repair,UMR00,R&M External Contractors,0100,2297.79,Andy Woods Landscapes,100078,26/04/2012,10166500
Housing Revenue Account ,Unplanned Maintenance and Repair,UMR00,R&M External Contractors,0100,724.06,Andy Woods Landscapes,100078,26/04/2012,10166678
Capital Program ,Kitchen Modifications,HIK10,Capital Contract Payments,5000,9191.44,A C E Carpentry & Joinery Contractors Ltd,100085,12/04/2012,10165518
Capital Program ,Kitchen Modifications,HIK10,Capital Contract Payments,5000,2297.86,A C E Carpentry & Joinery Contractors Ltd,100085,12/04/2012,10165650
Capital Program ,Kitchen Modifications,HIK10,Capital Contract Payments,5000,6893.58,A C E Carpentry & Joinery Contractors Ltd,100085,12/04/2012,10165847
Resources & Corporate Governance ,Corporate Assurance,BTR40,Conference & Seminar Fees,0401,545.00,Alarm,100090,04/04/2012,10165111
Resources & Corporate Governance ,Borough Elections,ELC00,Rents,0140,4202.00,DC Leisure Rugby,100140,19/04/2012,10165755
Resources & Corporate Governance ,Council Tax and NNDR Collection,CTX01,External Contractor & Operator,0742,103.75,Bristow & Sutor,100159,04/04/2012,10165286
Housing Revenue Account ,Control Centre (HRA),CCE00,New Equipment,0300,49.56,British Telecommunications Plc,100161,19/04/2012,10165851
Economy Development & Culture,Art Gallery and Museum,AGM00,Telephone Expenses,0371,208.57,British Telecommunications Plc,100161,19/04/2012,10165851
Resources & Corporate Governance ,Customer and Information Strategy,CIS10,Telephone Expenses,0371,1130.75,British Telecommunications Plc,100161,19/04/2012,10165851
Resources & Corporate Governance ,Civic Responsibilities,CIV00,Telephone Expenses,0371,43.56,British Telecommunications Plc,100161,19/04/2012,10165851
Economy Development & Culture,Car Parks General,CPK01,Telephone Expenses,0371,15.39,British Telecommunications Plc,100161,19/04/2012,10165851
Resources & Corporate Governance ,Council Tax and NNDR Collection,CTX01,Telephone Expenses,0371,37.74,British Telecommunications Plc,100161,19/04/2012,10165851
Economy Development & Culture,Decrim. of Car Parking on street parking,DPE02,Telephone Expenses,0371,61.54,British Telecommunications Plc,100161,19/04/2012,10165851
Sustainable Inclusive Communities,Housing Benefit Administration,HBA00,Telephone Expenses,0371,37.74,British Telecommunications Plc,100161,19/04/2012,10165851
Resources & Corporate Governance ,Town Hall,OFF00,Telephone Expenses,0371,113.22,British Telecommunications Plc,100161,19/04/2012,10165851
Sustainable Environment ,Recreation Grounds/Open Spaces,PKS01,Telephone Expenses,0371,47.93,British Telecommunications Plc,100161,19/04/2012,10165851
Resources & Corporate Governance ,Central Telephone Service,TEL00,Telephone Expenses,0371,37.74,British Telecommunications Plc,100161,19/04/2012,10165851
Economy Development & Culture,Visitor Centre,VSC00,Telephone Expenses,0371,151.16,British Telecommunications Plc,100161,19/04/2012,10165851
Sustainable Inclusive Communities,Woodside Park,TVR00,R&M External Contractors,0100,3382.00,Bt Redcare,100221,12/04/2012,10166031
Housing Revenue Account ,Unplanned Maintenance and Repair,UMR00,R&M External Contractors,0100,3079.10,Bowen Builders,100241,12/04/2012,10165717
Housing Revenue Account ,Sheltered Housing,AGP00,New Equipment,0300,146.90,Bowen Builders,100241,12/04/2012,10165717
Housing Revenue Account ,Sheltered Housing Team,MAN21,Estates,0457,17.61,Bowen Builders,100241,12/04/2012,10165717
Housing Revenue Account ,Unplanned Maintenance and Repair,UMR00,R&M External Contractors,0100,786.20,Bowen Builders,100241,12/04/2012,10165718
Resources & Corporate Governance,Corporate Property R&M,CPA01,R&M External Contractors,0100,1675.79,Bowen Builders,100241,26/04/2012,10166498
Housing Revenue Account ,Unplanned Maintenance and Repair,UMR00,R&M External Contractors,0100,2010.83,Bowen Builders,100241,26/04/2012,10166501
Housing Revenue Account ,Unplanned Maintenance and Repair,UMR00,R&M External Contractors,0100,470.78,Bowen Builders,100241,26/04/2012,10166502
Housing Revenue Account ,Unplanned Maintenance and Repair,UMR00,R&M External Contractors,0100,637.64,Bowen Builders,100241,26/04/2012,10166537
Housing Revenue Account ,Unplanned Maintenance and Repair,UMR00,R&M External Contractors,0100,439.57,Bowen Builders,100241,26/04/2012,10166689
Housing Revenue Account ,Sheltered Housing Team,MAN21,Estates,0457,44.03,Bowen Builders,100241,26/04/2012,10166689
Capital Program ,Disabled Adaptations,HCR01,Capital Contract Payments,5000,135.43,Bowen Builders,100241,26/04/2012,10166689
Housing Revenue Account ,Unplanned Maintenance and Repair,UMR00,R&M External Contractors,0100,513.34,Bowen Builders,100241,26/04/2012,10166750
Capital Program ,Disabled Adaptations,HCR01,Capital Contract Payments,5000,170.65,Bowen Builders,100241,26/04/2012,10166750
Resources & Corporate Governance ,Domestic Waste Collection,WWC00,Vehicle Repair and Maintenance,0200,475.00,Carwood Motor Units Ltd,100300,12/04/2012,10165886
Resources & Corporate Governance ,Domestic Waste Collection,WWC00,Vehicle Repair and Maintenance,0200,4010.00,Charles Watts Engineering Ltd,100302,12/04/2012,10165892
Resources & Corporate Governance ,Town Hall,OFF00,New Equipment,0300,486.73,City Electrical Factors  Ltd,100308,26/04/2012,10166142
Resources & Corporate Governance ,Financial Services,RES10,Subscriptions,0421,1765.00,Cipfa Business Ltd,100341,04/04/2012,10165709
Resources & Corporate Governance ,Financial Services,RES10,Conference & Seminar Fees,0401,1445.00,Cipfa Business Ltd,100341,26/04/2012,10166600
Resources & Corporate Governance ,IT Procurement,CMP00,IT Capital Expenditure,5025,2646.00,Stone Computers,100390,04/04/2012,10165807
Economy Development & Culture,Art Gallery and Museum,AGM00,Subscriptions,0421,1000.00,Contemporary Art Society,100422,19/04/2012,10166257
Sustainable Environment ,Clinical Waste,REF04,External Contractor & Operator,0742,547.47,OCS Group UK Ltd t/a Cannon,100436,19/04/2012,10166267
Economy Development & Culture,AGM Conservation/Documentation,AGM01,Other Miscellaneous Expenses,0444,769.00,C'Art - Art Transport Ltd,100487,19/04/2012,10165611
Resources & Corporate Governance,Central Business Support Services,CSS15,Photocopying,0354,767.02,Canon (UK) Limited,100514,19/04/2012,10165962
Resources & Corporate Governance ,Domestic Waste Collection,WWC00,Vehicle Repair and Maintenance,0200,4000.00,Chambers Engineering Ltd,100537,26/04/2012,10166564
Resources & Corporate Governance,Corporate Property R&M,CPA01,R&M External Contractors,0100,950.00,Dunchurch Services (Rugby) Ltd,100565,04/04/2012,10165586
Resources & Corporate Governance,Corporate Property R&M,CPA01,R&M External Contractors,0100,850.00,Dunchurch Services (Rugby) Ltd,100565,12/04/2012,10165660
Resources & Corporate Governance,Corporate Property R&M,CPA01,R&M External Contractors,0100,466.25,Dunchurch Services (Rugby) Ltd,100565,26/04/2012,10166381
Capital Program ,RG Disabled Facilities,REN01,Capital Grants,5014,4768.61,Bob Doyle,100575,19/04/2012,10166333
Housing Revenue Account ,Unplanned Maintenance and Repair,UMR00,R&M External Contractors,0100,6622.38,JADA Building & Maintenance Services Ltd,100583,04/04/2012,10165566
Capital Program ,Disabled Adaptations,HCR01,Capital Contract Payments,5000,49.86,JADA Building & Maintenance Services Ltd,100583,04/04/2012,10165566
Capital Program ,Kitchen Modifications,HIK10,Capital Contract Payments,5000,4550.00,JADA Building & Maintenance Services Ltd,100583,12/04/2012,10165845
Capital Program ,Kitchen Modifications,HIK10,Capital Contract Payments,5000,2275.00,JADA Building & Maintenance Services Ltd,100583,19/04/2012,10166224
Housing Revenue Account ,Unplanned Maintenance and Repair,UMR00,R&M External Contractors,0100,3519.56,JADA Building & Maintenance Services Ltd,100583,26/04/2012,10166320
Housing Revenue Account ,Sheltered Housing Team,MAN21,Estates,0457,27.50,JADA Building & Maintenance Services Ltd,100583,26/04/2012,10166320
Housing Revenue Account ,Estate Management,MAN22,External Contractor & Operator,0742,52.73,JADA Building & Maintenance Services Ltd,100583,26/04/2012,10166320
Capital Program ,Pettiver Crescent,PCH00,Capital Contract Payments,5000,37.97,JADA Building & Maintenance Services Ltd,100583,26/04/2012,10166320
Housing Revenue Account ,Unplanned Maintenance and Repair,UMR00,R&M External Contractors,0100,4506.13,JADA Building & Maintenance Services Ltd,100583,26/04/2012,10166493
Capital Program ,Disabled Adaptations,HCR01,Capital Contract Payments,5000,144.44,JADA Building & Maintenance Services Ltd,100583,26/04/2012,10166493
Housing Revenue Account ,Unplanned Maintenance and Repair,UMR00,R&M External Contractors,0100,625.00,JADA Building & Maintenance Services Ltd,100583,26/04/2012,10166607
Economy Development & Culture,Grants and Subscriptions,LGS00,Grants To Voluntary Organisations,0720,500.00,Draycote Water Sailing Club,100591,04/04/2012,10165599
Housing Revenue Account ,Unplanned Maintenance and Repair,UMR00,R&M External Contractors,0100,1534.50,Lee Davies Decorating,100600,12/04/2012,10165859
Housing Revenue Account ,Repainting Schemes,UMR02,R&M External Contractors,0100,533.34,Lee Davies Decorating,100600,12/04/2012,10165859
Housing Revenue Account ,Tanser Court AP,AGP17,Gas,0131,683.42,ESPO,100641,26/04/2012,10166180
Housing Revenue Account ,Albert Square AP,AGP20,Gas,0131,2490.59,ESPO,100641,26/04/2012,10166236
Housing Revenue Account ,Albert Square AP,AGP20,Gas,0131,-2713.62,ESPO,100641,26/04/2012,10166237
Housing Revenue Account ,Lesley Souter House AP,AGP16,Gas,0131,1832.20,ESPO,100641,26/04/2012,10166238
Housing Revenue Account ,Lesley Souter House AP,AGP16,Gas,0131,-1553.87,ESPO,100641,26/04/2012,10166239
,Balance Sheet,BS,Car Leasing Scheme,9244,5543.34,Lex Autolease Ltd,100844,19/04/2012,10166055
,Balance Sheet,BS,Car Leasing Scheme,9244,2718.49,Lex Autolease Ltd,100844,19/04/2012,10166056
,Balance Sheet,BS,Car Leasing Scheme,9244,3636.97,Lex Autolease Ltd,100844,19/04/2012,10166057
,Balance Sheet,BS,Car Leasing Scheme,9244,4407.02,Lex Autolease Ltd,100844,19/04/2012,10166058
,Balance Sheet,BS,Car Leasing Scheme,9244,3207.82,Lex Autolease Ltd,100844,26/04/2012,10166492
,Balance Sheet,BS,Car Leasing Scheme,9244,-456.23,Lex Autolease Ltd,100844,26/04/2012,10166598
Resources & Corporate Governance ,Financial Services,RES10,Car Lease Costs,0222,-83.70,Lex Autolease Ltd,100844,26/04/2012,10166648
,Balance Sheet,BS,Car Leasing Scheme,9244,-537.15,Lex Autolease Ltd,100844,26/04/2012,10166648
Resources & Corporate Governance ,Town Hall,OFF00,Materials,0303,578.00,Greenham,100890,26/04/2012,10166469
Resources & Corporate Governance ,Corporate Property Management,CPM00,Asset Management Expenses,0448,11994.50,Godfrey-Payton Chartered Surveyors,100937,12/04/2012,10165697
Resources & Corporate Governance ,Grounds Maintenance,WGM00,Materials,0303,1369.07,BHGS Ltd,100950,26/04/2012,10166562
Resources & Corporate Governance ,Street Cleansing,WSC00,Tools,0304,1389.00,Gem Tool Hire & Sales Ltd,100952,12/04/2012,10166019
Resources & Corporate Governance ,Human Resources Centralised Services,RES31,Recruitment Expenses,0012,613.50,TMP (UK) LTD,100972,12/04/2012,10165691
Capital Program ,Bathroom Modifications,HIS01,Capital Contract Payments,5000,18800.00,B Hartwell Plumbers Ltd,100989,12/04/2012,10165419
Housing Revenue Account ,Supervision and Management General,MAN00,Subscriptions,0421,4931.70,Housemark,101106,12/04/2012,10165955
Sustainable Inclusive Communities,Housing Benefit Administration,HBA00,Subscriptions,0421,499.00,Institute Of Revenues Rating & Valuation,101124,19/04/2012,10166244
Sustainable Environment ,Domestic Waste Collection/Recycling,REF00,Materials,0303,1245.00,Imperial Polythene Products Limited,101157,04/04/2012,10165479
Sustainable Environment ,Domestic Waste Collection/Recycling,REF00,Materials,0303,715.00,Imperial Polythene Products Limited,101157,19/04/2012,10166363
Resources & Corporate Governance ,Domestic Waste Collection,WWC00,Materials,0303,2640.00,Imperial Polythene Products Limited,101157,26/04/2012,10166563
Resources & Corporate Governance ,Grounds Maintenance,WGM00,Materials,0303,6305.00,James Coles & Sons (Nurseries) Ltd,101165,26/04/2012,10166123
Economy Development & Culture,Ken Marriott Leisure Centre,KML00,Other Miscellaneous Expenses,0444,1891.00,DC Leisure,101195,12/04/2012,10162598
Economy Development & Culture,Ken Marriott Leisure Centre,KML00,Other Miscellaneous Expenses,0444,4320.68,DC Leisure,101195,12/04/2012,10165555
Resources & Corporate Governance,Handy man,WHM00,External Contractor & Operator,0742,1100.00,MBG Decorators (Rugby Ltd),101288,04/04/2012,10165467
Housing Revenue Account ,Repainting Schemes,UMR02,R&M External Contractors,0100,2082.33,MBG Decorators (Rugby Ltd),101288,12/04/2012,10165723
Housing Revenue Account ,Repainting Schemes,UMR02,R&M External Contractors,0100,1440.00,MBG Decorators (Rugby Ltd),101288,19/04/2012,10166325
Housing Revenue Account ,Unplanned Maintenance and Repair,UMR00,R&M External Contractors,0100,1099.91,MBG Decorators (Rugby Ltd),101288,19/04/2012,10166326
Housing Revenue Account ,Repainting Schemes,UMR02,R&M External Contractors,0100,2320.00,MBG Decorators (Rugby Ltd),101288,19/04/2012,10166326
Housing Revenue Account ,Repainting Schemes,UMR02,R&M External Contractors,0100,1320.00,MBG Decorators (Rugby Ltd),101288,26/04/2012,10166685
Economy Development & Culture,Street Furniture,HIG01,Postage & Distribution,0370,30.00,Midland Signs (Leicester) Ltd,101295,04/04/2012,10165522
Economy Development & Culture,Street Furniture,HIG01,External Contractor & Operator,0742,1773.40,Midland Signs (Leicester) Ltd,101295,04/04/2012,10165522
Economy Development & Culture,Street Furniture,HIG01,External Contractor & Operator,0742,454.75,Midland Signs (Leicester) Ltd,101295,04/04/2012,10165523
Housing Revenue Account ,Maintenance of Open Spaces,MOS00,External Contractor & Operator,0742,180.00,Monks Kirby Parish Council,101300,04/04/2012,10165712
Sustainable Environment ,Grass Cutting,PKS13,External Contractor & Operator,0742,2368.00,Monks Kirby Parish Council,101300,04/04/2012,10165712
Resources & Corporate Governance,Corporate Property R&M,CPA01,R&M External Contractors,0100,640.00,Msm Environmental Services,101317,26/04/2012,10166508
Sustainable Environment ,Street Scene,ENV30,R&M External Contractors,0100,640.00,Middlemarch Environmental Ltd,101337,04/04/2012,10165620
Sustainable Environment ,Street Scene,ENV30,R&M External Contractors,0100,640.00,Middlemarch Environmental Ltd,101337,12/04/2012,10165621
Economy Development & Culture,Visitor Centre,VSC00,Events Tickets - Zero Rated,1405,1411.53,National Express Ltd,101392,04/04/2012,10165696
Capital Program ,RG Disabled Facilities,REN01,Capital Grants,5014,1932.39,Heart of England Housing Association,101400,04/04/2012,10165653
Resources & Corporate Governance,Central Business Support Services,CSS15,External Printing,0352,480.00,Polycopy,101428,19/04/2012,10166425
Resources & Corporate Governance ,Domestic Waste Collection,WWC00,Vehicle Running Costs,0201,1465.00,Post Office Ltd,101429,12/04/2012,10165969
Sustainable Environment ,Grass Cutting,PKS13,External Contractor & Operator,0742,2113.00,Princethorpe Parish Council,101433,26/04/2012,10166532
Sustainable Environment ,Caldecott Park/Town Centre Area,PKS00,R&M External Contractors,0100,512.52,PJT Pumping Services,101438,26/04/2012,10166440
Resources & Corporate Governance ,Brownsover Community Centre,CPM01,Electricity,0130,489.51,E.ON,101479,12/04/2012,10165840
Sustainable Inclusive Communities,Woodside Park,TVR00,Electricity,0130,1723.01,E.ON,101479,19/04/2012,10166432
Housing Revenue Account ,Unplanned Maintenance and Repair,UMR00,R&M External Contractors,0100,4149.00,Reeds Plumbing & Heating Contractors Ltd,101504,12/04/2012,10165726
Capital Program ,Disabled Adaptations,HCR01,Capital Contract Payments,5000,140.00,Reeds Plumbing & Heating Contractors Ltd,101504,12/04/2012,10165726
Capital Program ,RG Disabled Facilities,REN01,Capital Grants,5014,3600.00,Reeds Plumbing & Heating Contractors Ltd,101504,19/04/2012,10166385
Housing Revenue Account ,Supervision and Management General,MAN00,Council Tax,0142,764.14,Rugby Borough Council,101516,19/04/2012,10166198
Sustainable Inclusive Communities,Woodside Park,TVR00,Council Tax,0142,773.21,Rugby Borough Council,101516,19/04/2012,10166199
Sustainable Environment ,Caldecott Park/Town Centre Area,PKS00,Rates,0141,1350.00,Rugby Borough Council,101516,19/04/2012,10166200
Sustainable Environment ,Market,MKT00,Rates,0141,20037.50,Rugby Borough Council,101516,19/04/2012,10166201
Economy Development & Culture,AGM Conservation/Documentation,AGM01,Rates,0141,112668.00,Rugby Borough Council,101516,19/04/2012,10166202
Economy Development & Culture,Car Parks General,CPK01,Rates,0141,2970.00,Rugby Borough Council,101516,19/04/2012,10166203
Economy Development & Culture,Car Parks General,CPK01,Rates,0141,4612.50,Rugby Borough Council,101516,19/04/2012,10166204
Economy Development & Culture,Car Parks General,CPK01,Rates,0141,10992.00,Rugby Borough Council,101516,19/04/2012,10166205
Economy Development & Culture,Car Parks General,CPK01,Rates,0141,3015.00,Rugby Borough Council,101516,19/04/2012,10166206
Economy Development & Culture,Car Parks General,CPK01,Rates,0141,19236.00,Rugby Borough Council,101516,19/04/2012,10166207
Economy Development & Culture,Car Parks General,CPK01,Rates,0141,23587.00,Rugby Borough Council,101516,19/04/2012,10166208
Economy Development & Culture,Car Parks General,CPK01,Rates,0141,5287.50,Rugby Borough Council,101516,19/04/2012,10166209
Economy Development & Culture,Car Parks General,CPK01,Rates,0141,3150.00,Rugby Borough Council,101516,19/04/2012,10166210
Economy Development & Culture,Car Parks General,CPK01,Rates,0141,922.50,Rugby Borough Council,101516,19/04/2012,10166211
Economy Development & Culture,Town Centre Public Conveniences,PCS00,Rates,0141,4500.00,Rugby Borough Council,101516,19/04/2012,10166213
Sustainable Environment ,Cemeteries General,CEM00,Rates,0141,1957.50,Rugby Borough Council,101516,19/04/2012,10166214
Sustainable Environment ,Cemeteries General,CEM00,Rates,0141,956.25,Rugby Borough Council,101516,19/04/2012,10166215
Sustainable Environment ,Cemeteries General,CEM00,Rates,0141,1395.00,Rugby Borough Council,101516,19/04/2012,10166216
Sustainable Environment ,Cemeteries General,CEM00,Rates,0141,2340.00,Rugby Borough Council,101516,19/04/2012,10166217
Resources & Corporate Governance ,Town Hall,OFF00,Rates,0141,114500.00,Rugby Borough Council,101516,19/04/2012,10166218
Resources & Corporate Governance ,WSU Depot,WDP00,Rates,0141,34579.00,Rugby Borough Council,101516,19/04/2012,10166220
Sustainable Environment ,Administration,PKS12,Rates,0141,2655.00,Rugby Borough Council,101516,19/04/2012,10166221
Sustainable Environment ,Caldecott Park/Town Centre Area,PKS00,Rates,0141,12022.50,Rugby Borough Council,101516,19/04/2012,10166223
Resources & Corporate Governance ,Town Hall,OFF00,Internal Contractor,0743,4499.25,Rugby Borough Council,101516,26/04/2012,10166515
Resources & Corporate Governance ,Council Tax and NNDR Collection,CTX01,Postage & Distribution,0370,7570.75,Royal Mail,101554,04/04/2012,10164582
Economy Development & Culture,Art Gallery and Museum,AGM00,Postage & Distribution,0370,3.77,Royal Mail,101554,04/04/2012,10164633
Economy Development & Culture,Building Control Services,BCS00,Postage & Distribution,0370,4.59,Royal Mail,101554,04/04/2012,10164633
Economy Development & Culture,Building Regulation Fee Earning Account,BCS99,Postage & Distribution,0370,6.08,Royal Mail,101554,04/04/2012,10164633
Economy Development & Culture,Car Parks General,CPK01,Postage & Distribution,0370,43.02,Royal Mail,101554,04/04/2012,10164633
Resources & Corporate Governance,Central Business Support Services,CSS15,Postage & Distribution,0370,573.75,Royal Mail,101554,04/04/2012,10164633
Resources & Corporate Governance ,Council Tax and NNDR Collection,CTX01,Postage & Distribution,0370,146.86,Royal Mail,101554,04/04/2012,10164633
Economy Development & Culture,Decrim. of Car Parking on street parking,DPE02,Postage & Distribution,0370,172.07,Royal Mail,101554,04/04/2012,10164633
Resources & Corporate Governance ,Electoral Registration,ERG00,Postage & Distribution,0370,43.18,Royal Mail,101554,04/04/2012,10164633
Sustainable Inclusive Communities,Housing Benefit Administration,HBA00,Postage & Distribution,0370,178.21,Royal Mail,101554,04/04/2012,10164633
Housing Revenue Account ,Supervision and Management General,MAN00,Postage & Distribution,0370,267.86,Royal Mail,101554,04/04/2012,10164633
Economy Development & Culture,Planning General/Income,PLN00,Postage & Distribution,0370,78.28,Royal Mail,101554,04/04/2012,10164633
Economy Development & Culture,Visitor Centre,VSC00,Postage & Distribution,0370,2.66,Royal Mail,101554,04/04/2012,10164633
Resources & Corporate Governance ,General Administration,WAD00,Postage & Distribution,0370,30.27,Royal Mail,101554,04/04/2012,10164633
Resources & Corporate Governance ,Council Tax and NNDR Collection,CTX01,Postage & Distribution,0370,943.60,Royal Mail,101554,12/04/2012,10165705
Resources & Corporate Governance ,Borough Elections,ELC00,Postage & Distribution,0370,15446.84,Royal Mail,101554,12/04/2012,10165705
Economy Development & Culture,Art Gallery and Museum,AGM00,Postage & Distribution,0370,309.22,Royal Mail,101554,19/04/2012,10165846
Economy Development & Culture,Building Control Services,BCS00,Postage & Distribution,0370,3.47,Royal Mail,101554,19/04/2012,10165846
Economy Development & Culture,Building Regulation Fee Earning Account,BCS99,Postage & Distribution,0370,4.61,Royal Mail,101554,19/04/2012,10165846
Economy Development & Culture,Car Parks General,CPK01,Postage & Distribution,0370,79.77,Royal Mail,101554,19/04/2012,10165846
Resources & Corporate Governance,Central Business Support Services,CSS15,Postage & Distribution,0370,411.14,Royal Mail,101554,19/04/2012,10165846
Resources & Corporate Governance ,Council Tax and NNDR Collection,CTX01,Postage & Distribution,0370,125.23,Royal Mail,101554,19/04/2012,10165846
Economy Development & Culture,Decrim. of Car Parking on street parking,DPE02,Postage & Distribution,0370,319.06,Royal Mail,101554,19/04/2012,10165846
Resources & Corporate Governance ,Electoral Registration,ERG00,Postage & Distribution,0370,128.93,Royal Mail,101554,19/04/2012,10165846
Sustainable Inclusive Communities,Housing Benefit Administration,HBA00,Postage & Distribution,0370,226.06,Royal Mail,101554,19/04/2012,10165846
Housing Revenue Account ,Supervision and Management General,MAN00,Postage & Distribution,0370,1308.71,Royal Mail,101554,19/04/2012,10165846
Economy Development & Culture,Planning General/Income,PLN00,Postage & Distribution,0370,209.71,Royal Mail,101554,19/04/2012,10165846
Economy Development & Culture,Visitor Centre,VSC00,Postage & Distribution,0370,4.44,Royal Mail,101554,19/04/2012,10165846
Resources & Corporate Governance ,General Administration,WAD00,Postage & Distribution,0370,19.97,Royal Mail,101554,19/04/2012,10165846
Sustainable Inclusive Communities,CL Grants,CGS00,Grants To Voluntary Organisations,0720,55000.00,Rugby Citizens Advice Bureau,101563,26/04/2012,10166739
Economy Development & Culture,Sports and Recreation,LSD03,Development Activities,0450,1479.16,Rugby School Enterprises Limited,101579,04/04/2012,10165593
Resources & Corporate Governance,Handy man,WHM00,External Contractor & Operator,0742,2390.00,Rugby Plastering Services,101602,04/04/2012,10164526
Resources & Corporate Governance,Handy man,WHM00,External Contractor & Operator,0742,3701.17,Rugby Plastering Services,101602,04/04/2012,10165689
Housing Revenue Account ,Unplanned Maintenance and Repair,UMR00,R&M External Contractors,0100,3545.81,Rugby Plastering Services,101602,19/04/2012,10166316
Housing Revenue Account ,Unplanned Maintenance and Repair,UMR00,R&M External Contractors,0100,1127.12,Rugby Plastering Services,101602,26/04/2012,10166495
Sustainable Environment ,Recreation Grounds/Open Spaces,PKS01,New Equipment,0300,788.40,Sapcote Site Supplies Ltd,101606,12/04/2012,10165948
Economy Development & Culture,James St. Multi-storey Car Park,CPK02,Water Services,0143,2596.11,Severn Trent Water Ltd,101610,19/04/2012,10166044
Capital Program ,Disabled Adaptations,HCR01,Capital Contract Payments,5000,1599.00,Stannah Stairlifts Ltd,101623,04/04/2012,10165496
Capital Program ,Disabled Adaptations,HCR01,Capital Contract Payments,5000,1442.00,Stannah Stairlifts Ltd,101623,12/04/2012,10165959
Capital Program ,RG Disabled Facilities,REN01,Capital Grants,5014,1935.00,Stannah Stairlifts Ltd,101623,19/04/2012,10166332
Capital Program ,Disabled Adaptations,HCR01,Capital Contract Payments,5000,800.00,Stannah Stairlifts Ltd,101623,26/04/2012,10166509
Capital Program ,Disabled Adaptations,HCR01,Capital Contract Payments,5000,1442.00,Stannah Stairlifts Ltd,101623,26/04/2012,10166535
Capital Program ,Disabled Adaptations,HCR01,Capital Contract Payments,5000,1567.00,Stannah Stairlifts Ltd,101623,26/04/2012,10166606
Resources & Corporate Governance,Corporate Property R&M,CPA01,R&M External Contractors,0100,616.70,Secom Plc,101671,19/04/2012,10165150
Resources & Corporate Governance,Corporate Property R&M,CPA01,R&M External Contractors,0100,-616.70,Secom Plc,101671,19/04/2012,10166195
Resources & Corporate Governance ,Domestic Waste Collection,WWC00,Vehicle Running Costs,0201,1167.00,HI-Q Motorway,101736,12/04/2012,10165812
Resources & Corporate Governance ,Street Cleansing,WSC00,Vehicle Running Costs,0201,276.00,HI-Q Motorway,101736,19/04/2012,10166351
Resources & Corporate Governance ,Domestic Waste Collection,WWC00,Vehicle Running Costs,0201,328.45,HI-Q Motorway,101736,19/04/2012,10166351
Resources & Corporate Governance ,Domestic Waste Collection,WWC00,Contract Hire,0220,253.45,HI-Q Motorway,101736,19/04/2012,10166351
Sustainable Environment ,Grass Cutting,PKS13,External Contractor & Operator,0742,639.00,Willoughby Parish Council,101848,26/04/2012,10166520
Resources & Corporate Governance,Handy man,WHM00,Materials,0303,477.55,Wolseley UK Limited,101851,12/04/2012,10165975
Sustainable Environment ,Grass Cutting,PKS13,External Contractor & Operator,0742,4857.00,Wolston Parish Council,101852,26/04/2012,10166735
Resources & Corporate Governance ,Head of Business Transformation,BTR00,External Legal Costs,0741,1831.00,Wragge & Co.,101856,04/04/2012,10162892
,User Balance Sheet Cost Centre,BSU,Section Agreements,9865,3443.91,Warwickshire Wildlife Trust,101860,26/04/2012,10166504
Sustainable Environment ,Violence,CAD01,Development Activities,0450,500.00,Warwickshire Police Authority,101869,12/04/2012,10166079
Sustainable Environment ,Violence,CAD01,Development Activities,0450,800.00,Warwickshire Police Authority,101869,19/04/2012,10166283
Resources & Corporate Governance ,General Financial Services,GFS00,Subscriptions,0421,7849.00,West Midlands Councils,101880,19/04/2012,10166184
Economy Development & Culture,Car Parks General,CPK01,R&M External Contractors,0100,15617.92,Warwickshire County Council,101893,04/04/2012,10165659
Economy Development & Culture,Art Gallery and Museum,AGM00,Contract Cleaning,0170,934.42,Warwickshire County Council,101893,04/04/2012,10165758
Housing Revenue Account ,Unplanned Maintenance and Repair,UMR00,R&M External Contractors,0100,3580.33,Warwickshire County Council,101893,19/04/2012,10166175
Resources & Corporate Governance ,Trade Waste Collection,WWC01,Removal of Waste - WCC,0711,35418.54,Warwickshire County Council,101893,26/04/2012,10166505
Resources & Corporate Governance,Customer Support Services,CSS00,External Contractor & Operator,0742,1200.00,Warwickshire County Council,101893,26/04/2012,10166643
Housing Revenue Account ,Unplanned Maintenance and Repair,UMR00,R&M External Contractors,0100,581.17,Darren Wilson Roofing Ltd,101911,12/04/2012,10165727
Resources & Corporate Governance ,"Communications, Consultation and Information Team",BTR20,Publicity & Marketing,0377,443.52,Johnston Publishing Ltd,107468,04/04/2012,10165700
Resources & Corporate Governance ,"Communications, Consultation and Information Team",BTR20,Publicity & Marketing,0377,530.19,Johnston Publishing Ltd,107468,26/04/2012,10166526
Resources & Corporate Governance ,"Communications, Consultation and Information Team",BTR20,Publicity & Marketing,0377,530.19,Johnston Publishing Ltd,107468,26/04/2012,10166527
Resources & Corporate Governance,Handy man,WHM00,Contract Hire,0220,732.78,TJS Self Drive Rugby,107992,04/04/2012,10165608
Resources & Corporate Governance ,Change Team,BTR50,Payments to Other Local Authorities,0710,7455.99,Nuneaton & Bedworth Borough Council,108060,04/04/2012,10165658
Resources & Corporate Governance ,Customer and Information Strategy,CIS10,Payments to Other Local Authorities,0710,6000.00,Nuneaton & Bedworth Borough Council,108060,12/04/2012,10165867
Resources & Corporate Governance ,General Financial Services,GFS00,External Contractor & Operator,0742,1875.00,Sterling International Brokers Ltd,108141,04/04/2012,10165706
Resources & Corporate Governance ,Street Cleansing,WSC00,Vehicle Repair and Maintenance,0200,578.92,Scarab Sweepers Ltd,108252,19/04/2012,10166296
Sustainable Environment ,Domestic Waste Collection/Recycling,REF00,External Contractor & Operator,0742,2420.00,Environment Agency,109492,19/04/2012,10166173
Resources & Corporate Governance ,Grounds Maintenance,WGM00,Materials,0303,450.00,Lubbe & Sons (Bulbs) Ltd,110225,12/04/2012,10165680
Resources & Corporate Governance ,Garage Internal,WVR01,Materials,0303,12547.37,Watson Petroleum,110361,12/04/2012,10165908
Resources & Corporate Governance ,Garage Internal,WVR01,Materials,0303,6264.86,Watson Petroleum,110361,19/04/2012,10166170
Resources & Corporate Governance,Corporate Property R&M,CPA01,R&M External Contractors,0100,499.24,Croxford Electrical,110451,04/04/2012,10165532
Housing Revenue Account ,Unplanned Maintenance and Repair,UMR00,R&M External Contractors,0100,802.00,Dampco,111839,19/04/2012,10166192
Sustainable Environment ,Recreation Grounds/Open Spaces,PKS01,Electricity,0130,209.79,Rugby & Northampton Athletic Club,112392,04/04/2012,10165190
Sustainable Environment ,Recreation Grounds/Open Spaces,PKS01,Water Services,0143,346.23,Rugby & Northampton Athletic Club,112392,04/04/2012,10165190
Resources & Corporate Governance ,Grounds Maintenance,WGM00,External Contractor & Operator,0742,3443.87,Mark Smithers,112612,04/04/2012,10165837
Resources & Corporate Governance ,Grounds Maintenance,WGM00,External Contractor & Operator,0742,6142.91,Mark Smithers,112612,12/04/2012,10166063
Resources & Corporate Governance ,Maintenance of Customer Services Systems,CIS21,Software Purchase,0373,2250.00,Civica UK Ltd,112724,26/04/2012,10166227
Resources & Corporate Governance ,Mayoral Services,MAY00,Other Miscellaneous Expenses,0444,729.37,Thomas Fattorini,112742,19/04/2012,10166442
Resources & Corporate Governance ,Domestic Waste Collection,WWC00,Agency Staff,0003,779.57,Extra Personnel Limited,112996,04/04/2012,10165617
Resources & Corporate Governance ,Domestic Waste Collection,WWC00,Agency Staff,0003,762.14,Extra Personnel Limited,112996,19/04/2012,10166229
Resources & Corporate Governance ,Domestic Waste Collection,WWC00,Agency Staff,0003,677.23,Extra Personnel Limited,112996,26/04/2012,10166523
Economy Development & Culture,Decrim. of Car Parking on street parking,DPE02,Stationery Supplies,0350,676.00,Duraweld,113271,19/04/2012,10166138
Economy Development & Culture,General Highways Services,HIG00,External Contractor & Operator,0742,9145.87,Acorn Environmental Management Group Ltd,113313,12/04/2012,10165868
Sustainable Environment ,Caldecott Park/Town Centre Area,PKS00,External Contractor & Operator,0742,393.67,Acorn Environmental Management Group Ltd,113313,12/04/2012,10165868
Sustainable Environment ,Recreation Grounds/Open Spaces,PKS01,External Contractor & Operator,0742,433.77,Acorn Environmental Management Group Ltd,113313,12/04/2012,10165868
Economy Development & Culture,General Highways Services,HIG00,External Contractor & Operator,0742,1277.55,Acorn Environmental Management Group Ltd,113313,12/04/2012,10166032
Housing Revenue Account ,Unplanned Maintenance and Repair,UMR00,R&M External Contractors,0100,1341.40,Temple Lifts Ltd,114738,12/04/2012,10165904
Resources & Corporate Governance,Handy man,WHM00,Training fees,0011,845.00,OSTAS,117097,26/04/2012,10166368
Sustainable Inclusive Communities,Housing Benefit Administration,HBA00,Other,0763,1325.00,Airey Consultancy Services Ltd,117127,19/04/2012,10166191
Economy Development & Culture,Planning General/Income,PLN00,Fees & Charges - Outside Scope,1403,670.00,David Wilson Homes (East Midlands) Ltd,118004,26/04/2012,10166629
Economy Development & Culture,Grants and Subscriptions,LGS00,Grants To Voluntary Organisations,0720,500.00,Rugby Gymnastics Club,118009,04/04/2012,10165602
Resources & Corporate Governance ,Domestic Waste Collection,WWC00,Vehicle Repair and Maintenance,0200,486.01,Farid Municipal Vehicles Limited,118309,04/04/2012,10165612
Resources & Corporate Governance ,Highways,WHG00,Contract Hire,0220,469.80,Brandon Tool Hire,118489,04/04/2012,10164469
Resources & Corporate Governance ,Highways,WHG00,Contract Hire,0220,465.09,Brandon Tool Hire,118489,12/04/2012,10165999
Resources & Corporate Governance,Corporate Property Central Utilities,CPA02,Electricity,0130,6964.05,Southern Electric,118976,19/04/2012,10166254
Sustainable Environment ,Cemeteries General,CEM00,Electricity,0130,47.74,Southern Electric,118976,26/04/2012,10166366
Resources & Corporate Governance,Corporate Property Central Utilities,CPA02,Electricity,0130,675.77,Southern Electric,118976,26/04/2012,10166366
Economy Development & Culture,Car Parks General,CPK01,Electricity,0130,1995.54,Southern Electric,118976,26/04/2012,10166366
Sustainable Environment ,Street Scene,ENV30,Electricity,0130,806.58,Southern Electric,118976,26/04/2012,10166366
Economy Development & Culture,Town Centre Public Conveniences,PCS00,Electricity,0130,1153.99,Southern Electric,118976,26/04/2012,10166366
Sustainable Environment ,Caldecott Park/Town Centre Area,PKS00,Electricity,0130,568.40,Southern Electric,118976,26/04/2012,10166366
Sustainable Environment ,Recreation Grounds/Open Spaces,PKS01,Electricity,0130,311.20,Southern Electric,118976,26/04/2012,10166366
Sustainable Environment ,Administration,PKS12,Electricity,0130,103.28,Southern Electric,118976,26/04/2012,10166366
Resources & Corporate Governance ,WSU Depot,WDP00,Electricity,0130,2943.61,Southern Electric,118976,26/04/2012,10166366
Resources & Corporate Governance ,Street Cleansing,WSC00,Agency Staff,0003,473.44,Taskforce Recruitment Ltd,119614,04/04/2012,10165236
Resources & Corporate Governance ,Street Cleansing,WSC00,Agency Staff,0003,199.40,G-Staff Ltd,120173,04/04/2012,10165551
Resources & Corporate Governance ,Domestic Waste Collection,WWC00,Agency Staff,0003,820.50,G-Staff Ltd,120173,04/04/2012,10165551
Resources & Corporate Governance ,Street Cleansing,WSC00,Agency Staff,0003,294.12,G-Staff Ltd,120173,12/04/2012,10165934
Resources & Corporate Governance ,Domestic Waste Collection,WWC00,Agency Staff,0003,790.89,G-Staff Ltd,120173,12/04/2012,10165934
Resources & Corporate Governance ,Street Cleansing,WSC00,Agency Staff,0003,392.52,G-Staff Ltd,120173,19/04/2012,10166225
Resources & Corporate Governance ,Domestic Waste Collection,WWC00,Agency Staff,0003,952.80,G-Staff Ltd,120173,19/04/2012,10166225
Resources & Corporate Governance,Handy man,WHM00,Agency Staff,0003,172.20,G-Staff Ltd,120173,26/04/2012,10166566
Resources & Corporate Governance ,Street Cleansing,WSC00,Agency Staff,0003,175.05,G-Staff Ltd,120173,26/04/2012,10166566
Resources & Corporate Governance ,Domestic Waste Collection,WWC00,Agency Staff,0003,1391.56,G-Staff Ltd,120173,26/04/2012,10166566
Housing Revenue Account ,Supervision and Management General,MAN00,Movement Incentives,0454,500.00,REDACTED PERSONAL DATA,120927,04/04/2012,10165528
Resources & Corporate Governance ,Maintenance of Customer Services Systems,CIS21,Software Maintenance,0374,23500.00,Northgate Information Solutions UK Ltd,121606,12/04/2012,10165757
Capital Program ,Pettiver Crescent,PCH00,Capital Contract Payments,5000,1000.00,REDACTED PERSONAL DATA,122445,19/04/2012,10166436
Housing Revenue Account ,Maintenance of Open Spaces,MOS00,External Contractor & Operator,0742,892.29,Brinklow Quarry,122921,12/04/2012,10165805
Resources & Corporate Governance ,Grounds Maintenance,WGM00,External Contractor & Operator,0742,945.00,Tayside Amenity Sprayers Limited,122930,26/04/2012,10166448
Resources & Corporate Governance ,Central Telephone Service,TEL00,Telephone Expenses,0371,1166.86,Cable & Wireless,123224,19/04/2012,10165953
Resources & Corporate Governance ,Customer and Information Strategy,CIS10,Hardware Maintenance,0376,1250.87,Cable & Wireless,123224,12/04/2012,10166027
Resources & Corporate Governance ,Grounds Maintenance,WGM00,Materials,0303,525.00,Rigby Taylor Ltd,123342,19/04/2012,10166161
Capital Program ,Pettiver Crescent,PCH00,Capital Contract Payments,5000,4664.21,REDACTED PERSONAL DATA,123660,04/04/2012,10165386
Capital Program ,Pettiver Crescent,PCH00,Capital Contract Payments,5000,4700.00,REDACTED PERSONAL DATA,124083,19/04/2012,10166431
Economy Development & Culture,Building Control Services,BCS00,Subscriptions,0421,1469.17,IHS (Global) Ltd,124552,26/04/2012,10166342
Economy Development & Culture,Building Regulation Fee Earning Account,BCS99,Subscriptions,0421,1947.50,IHS (Global) Ltd,124552,26/04/2012,10166342
Resources & Corporate Governance,Corporate Property Administration,CPA00,Subscriptions,0421,3416.66,IHS (Global) Ltd,124552,26/04/2012,10166342
Sustainable Environment ,Caldecott Park/Town Centre Area,PKS00,Subscriptions,0421,3416.67,IHS (Global) Ltd,124552,26/04/2012,10166342
Capital Program ,Queen's Diamond Jubilee Leisure Centre Project,LEI03,Capital Contract Payments,5000,426.91,Utilitycom Ltd,124856,26/04/2012,10166038
,Balance Sheet,BS,Car Loan Scheme,9261,4000.00,REDACTED PERSONAL DATA,125447,26/04/2012,10166650
Sustainable Environment ,Head of Environmental Services,ENV00,Training fees,0011,735.00,The Open University,125783,26/04/2012,10166517
Economy Development & Culture,Economic Development General,ECD00,Borough Local Plan,0452,9300.00,George and Company (Surveyors) Ltd,126668,04/04/2012,10165520
Housing Revenue Account ,Supervision and Management General,MAN00,Consultancy Costs,0740,6500.00,George and Company (Surveyors) Ltd,126668,04/04/2012,10165661
Resources & Corporate Governance ,Corporate Property Management,CPM00,Asset Management Expenses,0448,2850.00,George and Company (Surveyors) Ltd,126668,12/04/2012,10165957
Resources & Corporate Governance,Handy man,WHM00,External Contractor & Operator,0742,767.50,M P Hudson & Son,129334,26/04/2012,10166665
Capital Program ,Moving in Grants,MIG00,Capital Contract Payments,5000,1500.00,Rugby First Limited - Town Centre,130214,12/04/2012,10165954
Capital Program ,Moving in Grants,MIG00,Capital Contract Payments,5000,1500.00,Rugby First Limited - Town Centre,130214,19/04/2012,10166183
Sustainable Inclusive Communities,Woodside Park,TVR00,External Contractor & Operator,0742,2640.00,Rugby First Limited - Town Centre,130214,26/04/2012,10166490
Capital Program ,Moving in Grants,MIG00,Capital Contract Payments,5000,1500.00,Rugby First Limited - Town Centre,130214,26/04/2012,10166602
Sustainable Environment ,Play Areas,PKS07,Maintenance of Equipment,0301,1317.62,Sutcliffe Play Ltd,131511,04/04/2012,10165232
Economy Development & Culture,Decrim. of Car Parking on street parking,DPE02,Cash Collection,0744,734.32,Jade Security Services Ltd,131711,12/04/2012,10165964
Economy Development & Culture,Car Parks General,CPK01,Cash Collection,0744,1046.68,Jade Security Services Ltd,131711,12/04/2012,10165965
Housing Revenue Account ,Asbestos Surveys,UMR05,R&M External Contractors,0100,1325.00,Challen Commercial Investigations Ltd T/A Ensafe,131876,12/04/2012,10165728
Capital Program ,Heating Upgrades,HIM01,Capital Contract Payments,5000,260.00,Challen Commercial Investigations Ltd T/A Ensafe,131876,12/04/2012,10165728
Housing Revenue Account ,Asbestos Surveys,UMR05,R&M External Contractors,0100,129.95,Challen Commercial Investigations Ltd T/A Ensafe,131876,26/04/2012,10166540
Capital Program ,Heating Upgrades,HIM01,Capital Contract Payments,5000,260.00,Challen Commercial Investigations Ltd T/A Ensafe,131876,26/04/2012,10166540
Capital Program ,Electric to Gas Conversions,HIM04,Capital Contract Payments,5000,2859.95,Challen Commercial Investigations Ltd T/A Ensafe,131876,26/04/2012,10166540
Capital Program ,Bathroom Modifications,HIS01,Capital Contract Payments,5000,130.00,Challen Commercial Investigations Ltd T/A Ensafe,131876,26/04/2012,10166540
Capital Program ,RG Disabled Facilities,REN01,Capital Grants,5014,2623.20,D K Builders,131946,04/04/2012,10165656
Capital Program ,RG Disabled Facilities,REN01,Capital Grants,5014,6088.50,D K Builders,131946,19/04/2012,10166388
Housing Revenue Account ,Unplanned Maintenance and Repair,UMR00,R&M External Contractors,0100,934.80,Wilson Electrics,132051,12/04/2012,10165719
Housing Revenue Account ,Unplanned Maintenance and Repair,UMR00,R&M External Contractors,0100,2097.10,Wilson Electrics,132051,26/04/2012,10166541
Economy Development & Culture,Grants and Subscriptions,LGS00,Grants To Voluntary Organisations,0720,500.00,Rugby Town Junior Football Club,132599,04/04/2012,10165603
Resources & Corporate Governance ,Maintenance of Customer Services Systems,CIS21,Software Maintenance,0374,6255.25,Macfarlane Telesystems,133288,12/04/2012,10165681
Resources & Corporate Governance ,Highways,WHG00,Materials,0303,825.44,Breedon Aggregates England Limited,133309,12/04/2012,10166008
Resources & Corporate Governance,Handy man,WHM00,External Contractor & Operator,0742,810.00,Homecare Decorating,133884,12/04/2012,10165390
Resources & Corporate Governance,Handy man,WHM00,External Contractor & Operator,0742,810.00,Homecare Decorating,133884,12/04/2012,10165391
Resources & Corporate Governance,Handy man,WHM00,External Contractor & Operator,0742,810.00,Homecare Decorating,133884,12/04/2012,10165392
Housing Revenue Account ,Unplanned Maintenance and Repair,UMR00,R&M External Contractors,0100,573.58,Sunfish Services Ltd,133886,26/04/2012,10166682
Housing Revenue Account ,Unplanned Maintenance and Repair,UMR00,R&M External Contractors,0100,452.78,Delec Ltd,133887,04/04/2012,10165450
Housing Revenue Account ,Electrical Inspections,UMR04,R&M External Contractors,0100,204.00,Delec Ltd,133887,04/04/2012,10165450
Housing Revenue Account ,Estate Management,MAN22,Movement Incentives,0454,34.24,Delec Ltd,133887,04/04/2012,10165450
Housing Revenue Account ,Unplanned Maintenance and Repair,UMR00,R&M External Contractors,0100,993.26,Delec Ltd,133887,04/04/2012,10165561
Housing Revenue Account ,Supervision and Management General,MAN00,Movement Incentives,0454,18.55,Delec Ltd,133887,04/04/2012,10165561
Housing Revenue Account ,Unplanned Maintenance and Repair,UMR00,R&M External Contractors,0100,1047.41,Delec Ltd,133887,19/04/2012,10165725
Capital Program ,Pettiver Crescent,PCH00,Capital Contract Payments,5000,37.10,Delec Ltd,133887,19/04/2012,10165725
Housing Revenue Account ,Unplanned Maintenance and Repair,UMR00,R&M External Contractors,0100,1351.60,Delec Ltd,133887,19/04/2012,10166391
Housing Revenue Account ,Unplanned Maintenance and Repair,UMR00,R&M External Contractors,0100,977.20,Delec Ltd,133887,19/04/2012,10166392
Housing Revenue Account ,Unplanned Maintenance and Repair,UMR00,R&M External Contractors,0100,1777.06,Delec Ltd,133887,26/04/2012,10166503
Housing Revenue Account ,Unplanned Maintenance and Repair,UMR00,R&M External Contractors,0100,2238.71,Delec Ltd,133887,26/04/2012,10166680
Economy Development & Culture,Car Parks General,CPK01,Other Agencies,0734,560.00,24181 TEC,133967,26/04/2012,10166704
Economy Development & Culture,Decrim. of Car Parking on street parking,DPE02,Other Agencies,0734,2240.00,24181 TEC,133967,26/04/2012,10166704
Sustainable Inclusive Communities,CL Grants,CGS00,Grants To Voluntary Organisations,0720,2500.00,Brownsover Community Association,135180,12/04/2012,10165874
Housing Revenue Account ,Robotham Close AP,AGP11,Electricity,0130,375.66,Southern Electric,135653,26/04/2012,10166365
Housing Revenue Account ,Stacey Court AP,AGP12,Electricity,0130,-1719.64,Southern Electric,135653,26/04/2012,10166365
Housing Revenue Account ,Stretton Court AP,AGP13,Electricity,0130,274.76,Southern Electric,135653,26/04/2012,10166365
Housing Revenue Account ,Tanser Court AP,AGP17,Electricity,0130,-537.56,Southern Electric,135653,26/04/2012,10166365
Housing Revenue Account ,Brookside Pailton AP,AGP40,Electricity,0130,120.62,Southern Electric,135653,26/04/2012,10166365
Housing Revenue Account ,Featherbed Lane I AP,AGP45,Electricity,0130,-25.24,Southern Electric,135653,26/04/2012,10166365
Housing Revenue Account ,Great Balance Brinklow AP,AGP48,Electricity,0130,89.37,Southern Electric,135653,26/04/2012,10166365
Housing Revenue Account ,Norman Road AP,AGP60,Electricity,0130,33.70,Southern Electric,135653,26/04/2012,10166365
Housing Revenue Account ,Patterdale AP,AGP61,Electricity,0130,-488.39,Southern Electric,135653,26/04/2012,10166365
Housing Revenue Account ,Parkfield Road/Lea Crescent AP,AGP71,Electricity,0130,94.43,Southern Electric,135653,26/04/2012,10166365
Housing Revenue Account ,Supervision and Management General,MAN00,Electricity,0130,-349.44,Southern Electric,135653,26/04/2012,10166365
Housing Revenue Account ,Avon Court AP,AGP02,Electricity,0130,533.66,Southern Electric,135653,26/04/2012,10166367
Housing Revenue Account ,Dickinson Court AP,AGP03,Electricity,0130,437.71,Southern Electric,135653,26/04/2012,10166367
Housing Revenue Account ,Duffy Place AP,AGP04,Electricity,0130,765.09,Southern Electric,135653,26/04/2012,10166367
Housing Revenue Account ,Frederick Press Way AP,AGP06,Electricity,0130,1473.30,Southern Electric,135653,26/04/2012,10166367
Housing Revenue Account ,Mercer Court AP,AGP09,Electricity,0130,549.47,Southern Electric,135653,26/04/2012,10166367
Housing Revenue Account ,Pettiver Crescent I AP,AGP10,Electricity,0130,1233.33,Southern Electric,135653,26/04/2012,10166367
Housing Revenue Account ,Robotham Close AP,AGP11,Electricity,0130,643.24,Southern Electric,135653,26/04/2012,10166367
Housing Revenue Account ,Sun Street/Windsor Street AP,AGP14,Electricity,0130,1263.93,Southern Electric,135653,26/04/2012,10166367
Housing Revenue Account ,Lesley Souter House AP,AGP16,Electricity,0130,2604.06,Southern Electric,135653,26/04/2012,10166367
Housing Revenue Account ,Edward Court AP,AGP19,Electricity,0130,564.23,Southern Electric,135653,26/04/2012,10166367
Housing Revenue Account ,Albert Square AP,AGP20,Electricity,0130,59.58,Southern Electric,135653,26/04/2012,10166367
Housing Revenue Account ,Clare Court Site,AGP27,Electricity,0130,87.03,Southern Electric,135653,26/04/2012,10166367
Housing Revenue Account ,Alexandra/James Court AP,AGP30,Electricity,0130,264.75,Southern Electric,135653,26/04/2012,10166367
Housing Revenue Account ,Clifton Road AP,AGP41,Electricity,0130,65.39,Southern Electric,135653,26/04/2012,10166367
Housing Revenue Account ,Featherbed Lane I AP,AGP45,Electricity,0130,419.15,Southern Electric,135653,26/04/2012,10166367
Housing Revenue Account ,Fox Close AP,AGP47,Electricity,0130,175.96,Southern Electric,135653,26/04/2012,10166367
Housing Revenue Account ,Jackson Road I AP,AGP53,Electricity,0130,105.20,Southern Electric,135653,26/04/2012,10166367
Housing Revenue Account ,Lever Road I AP,AGP57,Electricity,0130,584.34,Southern Electric,135653,26/04/2012,10166367
Housing Revenue Account ,The Kent AP,AGP67,Electricity,0130,120.41,Southern Electric,135653,26/04/2012,10166367
Housing Revenue Account ,Victoria Street/Lawford Road AP,AGP68,Electricity,0130,29.52,Southern Electric,135653,26/04/2012,10166367
Housing Revenue Account ,Parkfield Road/Lea Crescent AP,AGP71,Electricity,0130,93.51,Southern Electric,135653,26/04/2012,10166367
Housing Revenue Account ,Pennington Street/Round Street AP,AGP72,Electricity,0130,552.30,Southern Electric,135653,26/04/2012,10166367
Housing Revenue Account ,Control Centre CCTV,CCE01,Electricity,0130,2729.04,Southern Electric,135653,26/04/2012,10166367
Housing Revenue Account ,Supervision and Management General,MAN00,Electricity,0130,189.26,Southern Electric,135653,26/04/2012,10166367
Housing Revenue Account ,Multi-Storey Flats,MSF00,Electricity,0130,7202.86,Southern Electric,135653,26/04/2012,10166367
Economy Development & Culture,Grants and Subscriptions,LGS00,Grants To Voluntary Organisations,0720,500.00,Rugby Phoenix Volleyball Club,137296,04/04/2012,10165598
Resources & Corporate Governance ,Street Cleansing,WSC00,Materials,0303,430.00,Danline International Ltd,137588,12/04/2012,10165810
Resources & Corporate Governance ,Street Cleansing,WSC00,Materials,0303,588.00,Demon International Ltd,138463,04/04/2012,10165609
Economy Development & Culture,Grants and Subscriptions,LGS00,Grants To Voluntary Organisations,0720,500.00,Rugby & Northampton Athletic Club,138672,04/04/2012,10165601
Resources & Corporate Governance ,Borough Elections,ELC00,Printing poll cards,0343,1310.00,Smith & Ouzman Ltd,138682,12/04/2012,10166018
Housing Revenue Account ,Unplanned Maintenance and Repair,UMR00,R&M External Contractors,0100,2221.58,Regent Office Care Ltd T/A Regent Cleaning,138934,04/04/2012,10165560
Housing Revenue Account ,Sheltered Housing,AGP00,Contract Cleaning,0170,14297.47,Regent Office Care Ltd T/A Regent Cleaning,138934,12/04/2012,10166035
Sustainable Inclusive Communities,Housing Options Team,HOT00,Contract Cleaning,0170,134.76,Regent Office Care Ltd T/A Regent Cleaning,138934,12/04/2012,10166035
Housing Revenue Account ,Estate Management,MAN22,Contract Cleaning,0170,3078.90,Regent Office Care Ltd T/A Regent Cleaning,138934,12/04/2012,10166035
Housing Revenue Account ,Multi-Storey Flats,MSF00,Contract Cleaning,0170,1731.90,Regent Office Care Ltd T/A Regent Cleaning,138934,12/04/2012,10166035
Housing Revenue Account ,Unplanned Maintenance and Repair,UMR00,R&M External Contractors,0100,466.70,Regent Office Care Ltd T/A Regent Cleaning,138934,12/04/2012,10166054
Housing Revenue Account ,Unplanned Maintenance and Repair,UMR00,R&M External Contractors,0100,1589.66,Regent Office Care Ltd T/A Regent Cleaning,138934,19/04/2012,10166393
Housing Revenue Account ,Unplanned Maintenance and Repair,UMR00,R&M External Contractors,0100,1722.31,Regent Office Care Ltd T/A Regent Cleaning,138934,26/04/2012,10166681
Economy Development & Culture,Planning Control,PLN01,Consultancy Costs,0740,800.00,P Rhodes,140076,19/04/2012,10166383
Resources & Corporate Governance ,Domestic Waste Collection,WWC00,Vehicle Repair and Maintenance,0200,544.10,Midlands Truck & Van Ltd,140322,04/04/2012,10165678
Resources & Corporate Governance ,Customer and Information Strategy,CIS10,Telephone Expenses,0371,1150.00,Zen Internet Ltd,141612,12/04/2012,10165695
Resources & Corporate Governance ,Customer and Information Strategy,CIS10,Telephone Expenses,0371,793.16,Zen Internet Ltd,141612,26/04/2012,10166599
Resources & Corporate Governance ,IT Procurement,CMP00,IT Capital Expenditure,5025,1097.85,Comodo CA Ltd,143874,04/04/2012,10164795
Sustainable Environment ,Caldecott Park/Town Centre Area,PKS00,Purchases for Resale,0305,648.00,David Ogilvie Engineering Ltd,143891,26/04/2012,10166433
Sustainable Environment ,Repairs and Maintenance/General Equipment,PKS03,R&M External Contractors,0100,1005.00,Fountains Direct Limited,144391,26/04/2012,10166525
Resources & Corporate Governance ,General Financial Services,GFS00,Subscriptions,0421,9670.83,Local Government Association,144471,12/04/2012,10165887
Sustainable Inclusive Communities,CL Grants,CGS00,Grants To Voluntary Organisations,0720,33000.00,Warwickshire CAVA,145040,26/04/2012,10166738
Housing Revenue Account ,Control Centre CCTV,CCE01,External Contractor & Operator,0742,15432.24,Securitas Security Personnel Ltd,145079,04/04/2012,10165498
Housing Revenue Account ,Property Maintenance,MAN23,Agency Staff,0003,1110.00,James Andrews Recruitment Solutions Ltd,145100,04/04/2012,10165576
Housing Revenue Account ,Property Maintenance,MAN23,Agency Staff,0003,1044.00,James Andrews Recruitment Solutions Ltd,145100,04/04/2012,10165577
Housing Revenue Account ,Property Maintenance,MAN23,Agency Staff,0003,1145.85,James Andrews Recruitment Solutions Ltd,145100,04/04/2012,10165578
Housing Revenue Account ,Property Maintenance,MAN23,Agency Staff,0003,983.83,James Andrews Recruitment Solutions Ltd,145100,04/04/2012,10165579
Housing Revenue Account ,Property Maintenance,MAN23,Agency Staff,0003,1129.80,James Andrews Recruitment Solutions Ltd,145100,04/04/2012,10165580
Housing Revenue Account ,Property Maintenance,MAN23,Agency Staff,0003,980.44,James Andrews Recruitment Solutions Ltd,145100,12/04/2012,10165771
Housing Revenue Account ,Property Maintenance,MAN23,Agency Staff,0003,1118.10,James Andrews Recruitment Solutions Ltd,145100,12/04/2012,10165772
Housing Revenue Account ,Property Maintenance,MAN23,Agency Staff,0003,899.00,James Andrews Recruitment Solutions Ltd,145100,12/04/2012,10166112
Sustainable Inclusive Communities,Housing Strategy & Enabling,HSE00,Agency Staff,0003,463.98,James Andrews Recruitment Solutions Ltd,145100,19/04/2012,10166115
Sustainable Inclusive Communities,Housing Strategy & Enabling,HSE00,Agency Staff,0003,499.13,James Andrews Recruitment Solutions Ltd,145100,19/04/2012,10166118
Housing Revenue Account ,Property Maintenance,MAN23,Agency Staff,0003,870.00,James Andrews Recruitment Solutions Ltd,145100,19/04/2012,10166378
Housing Revenue Account ,Property Maintenance,MAN23,Agency Staff,0003,784.41,James Andrews Recruitment Solutions Ltd,145100,19/04/2012,10166379
Housing Revenue Account ,Property Maintenance,MAN23,Agency Staff,0003,818.41,James Andrews Recruitment Solutions Ltd,145100,19/04/2012,10166380
Sustainable Inclusive Communities,Housing Strategy & Enabling,HSE00,Agency Staff,0003,499.13,James Andrews Recruitment Solutions Ltd,145100,19/04/2012,10166434
Sustainable Inclusive Communities,Housing Strategy & Enabling,HSE00,Agency Staff,0003,499.13,James Andrews Recruitment Solutions Ltd,145100,19/04/2012,10166435
Housing Revenue Account ,Property Maintenance,MAN23,Agency Staff,0003,1004.98,James Andrews Recruitment Solutions Ltd,145100,26/04/2012,10166674
Housing Revenue Account ,Property Maintenance,MAN23,Agency Staff,0003,957.00,James Andrews Recruitment Solutions Ltd,145100,26/04/2012,10166676
,User Balance Sheet Cost Centre,BSU,Section Agreements,9865,1532.85,Pictorial Meadows Ltd,145233,04/04/2012,10165682
Capital Program ,Open Spaces Refurbishment,LEI08,Capital Contract Payments,5000,1950.00,KOVA Landscape,145321,04/04/2012,10165613
Resources & Corporate Governance ,Street Cleansing,WSC00,Agency Staff,0003,289.34,Blue Arrow Limited,145492,04/04/2012,10164940
Resources & Corporate Governance ,Domestic Waste Collection,WWC00,Agency Staff,0003,172.04,Blue Arrow Limited,145492,04/04/2012,10164940
Resources & Corporate Governance,Handy man,WHM00,Agency Staff,0003,113.39,Blue Arrow Limited,145492,04/04/2012,10165206
Resources & Corporate Governance ,Street Cleansing,WSC00,Agency Staff,0003,520.00,Blue Arrow Limited,145492,04/04/2012,10165206
Resources & Corporate Governance,Handy man,WHM00,Agency Staff,0003,289.34,Blue Arrow Limited,145492,04/04/2012,10165398
Resources & Corporate Governance ,Street Cleansing,WSC00,Agency Staff,0003,295.00,Blue Arrow Limited,145492,04/04/2012,10165398
Resources & Corporate Governance ,Domestic Waste Collection,WWC00,Agency Staff,0003,58.65,Blue Arrow Limited,145492,04/04/2012,10165398
Resources & Corporate Governance ,Street Cleansing,WSC00,Agency Staff,0003,300.00,Blue Arrow Limited,145492,04/04/2012,10165399
Resources & Corporate Governance ,Domestic Waste Collection,WWC00,Agency Staff,0003,344.08,Blue Arrow Limited,145492,04/04/2012,10165399
Resources & Corporate Governance,Handy man,WHM00,Agency Staff,0003,289.34,Blue Arrow Limited,145492,04/04/2012,10165474
Resources & Corporate Governance ,Street Cleansing,WSC00,Agency Staff,0003,370.00,Blue Arrow Limited,145492,04/04/2012,10165474
Resources & Corporate Governance,Handy man,WHM00,Agency Staff,0003,-105.56,Blue Arrow Limited,145492,04/04/2012,10165642
Resources & Corporate Governance ,Street Cleansing,WSC00,Agency Staff,0003,-520.00,Blue Arrow Limited,145492,04/04/2012,10165642
Resources & Corporate Governance,Handy man,WHM00,Agency Staff,0003,-269.36,Blue Arrow Limited,145492,04/04/2012,10165643
Resources & Corporate Governance ,Street Cleansing,WSC00,Agency Staff,0003,-370.00,Blue Arrow Limited,145492,04/04/2012,10165643
Resources & Corporate Governance ,Street Cleansing,WSC00,Agency Staff,0003,444.29,Blue Arrow Limited,145492,19/04/2012,10165813
Resources & Corporate Governance ,Domestic Waste Collection,WWC00,Agency Staff,0003,113.39,Blue Arrow Limited,145492,19/04/2012,10165813
Resources & Corporate Governance,Handy man,WHM00,Agency Staff,0003,58.65,Blue Arrow Limited,145492,19/04/2012,10166362
Resources & Corporate Governance ,Street Cleansing,WSC00,Agency Staff,0003,664.33,Blue Arrow Limited,145492,19/04/2012,10166362
Resources & Corporate Governance ,Domestic Waste Collection,WWC00,Agency Staff,0003,78.47,Blue Arrow Limited,145492,19/04/2012,10166362
Resources & Corporate Governance ,Street Cleansing,WSC00,Agency Staff,0003,299.74,Blue Arrow Limited,145492,26/04/2012,10166717
Resources & Corporate Governance ,Domestic Waste Collection,WWC00,Agency Staff,0003,152.49,Blue Arrow Limited,145492,26/04/2012,10166717
Housing Revenue Account ,Supervision and Management General,MAN00,Publicity & Marketing,0377,675.45,Impress Print,145574,04/04/2012,10165315
Capital Program ,Pettiver Crescent,PCH00,Capital Contract Payments,5000,1000.00,REDACTED PERSONAL DATA,145688,02/04/2012,10165187
Resources & Corporate Governance ,Highways,WHG00,Materials,0303,717.40,Midland Rock Leicester Ltd,145830,26/04/2012,10166570
Sustainable Environment ,Communities Against Drugs,CAD00,Development Activities,0450,2000.00,Futures Unlocked,145956,12/04/2012,10165903
Economy Development & Culture,Grants and Subscriptions,LGS00,Grants To Voluntary Organisations,0720,500.00,Rugby & East Warwickshire Hockey Club,146075,04/04/2012,10165604
Resources & Corporate Governance ,Council Tax and NNDR Collection,CTX01,External Printing,0352,1850.00,PSC Systems Ltd,146087,04/04/2012,10165039
Resources & Corporate Governance ,Council Tax and NNDR Collection,CTX01,External Printing,0352,2595.00,PSC Systems Ltd,146087,04/04/2012,10165040
Resources & Corporate Governance ,Council Tax and NNDR Collection,CTX01,External Printing,0352,1163.40,PSC Systems Ltd,146087,04/04/2012,10165178
Resources & Corporate Governance ,Council Tax and NNDR Collection,CTX01,External Printing,0352,861.00,PSC Systems Ltd,146087,04/04/2012,10165495
Resources & Corporate Governance ,Council Tax and NNDR Collection,CTX01,Maintenance of Equipment,0301,448.50,Twofold Ltd,146202,19/04/2012,10166338
Economy Development & Culture,Grants and Subscriptions,LGS00,Grants To Voluntary Organisations,0720,500.00,Church Lawford Players,146357,19/04/2012,10166065
Capital Program ,Pettiver Crescent,PCH00,Capital Contract Payments,5000,3707.60,REDACTED PERSONAL DATA,146482,04/04/2012,10165193
Resources & Corporate Governance ,Domestic Waste Collection,WWC00,Agency Staff,0003,498.49,Fresh Recruitment Solutions (FRS) Ltd,146784,04/04/2012,10165405
Resources & Corporate Governance ,Trade Waste Collection,WWC01,Agency Staff,0003,100.96,Fresh Recruitment Solutions (FRS) Ltd,146784,04/04/2012,10165405
Resources & Corporate Governance ,Trade Waste Collection,WWC01,Agency Staff,0003,467.41,Fresh Recruitment Solutions (FRS) Ltd,146784,04/04/2012,10165407
Resources & Corporate Governance ,Trade Waste Collection,WWC01,Agency Staff,0003,467.41,Fresh Recruitment Solutions (FRS) Ltd,146784,12/04/2012,10165795
Resources & Corporate Governance,Handy man,WHM00,Agency Staff,0003,459.80,Fresh Recruitment Solutions (FRS) Ltd,146784,12/04/2012,10165800
Resources & Corporate Governance ,Domestic Waste Collection,WWC00,Agency Staff,0003,497.11,Fresh Recruitment Solutions (FRS) Ltd,146784,19/04/2012,10166077
Resources & Corporate Governance ,Street Cleansing,WSC00,Agency Staff,0003,446.73,Fresh Recruitment Solutions (FRS) Ltd,146784,19/04/2012,10166081
Resources & Corporate Governance ,Domestic Waste Collection,WWC00,Agency Staff,0003,503.90,Fresh Recruitment Solutions (FRS) Ltd,146784,26/04/2012,10166416
Resources & Corporate Governance ,Domestic Waste Collection,WWC00,Agency Staff,0003,503.90,Fresh Recruitment Solutions (FRS) Ltd,146784,26/04/2012,10166417
Resources & Corporate Governance ,Domestic Waste Collection,WWC00,Agency Staff,0003,503.90,Fresh Recruitment Solutions (FRS) Ltd,146784,26/04/2012,10166421
Resources & Corporate Governance ,Domestic Waste Collection,WWC00,Agency Staff,0003,503.90,Fresh Recruitment Solutions (FRS) Ltd,146784,26/04/2012,10166422
Resources & Corporate Governance ,Domestic Waste Collection,WWC00,Agency Staff,0003,631.04,Fresh Recruitment Solutions (FRS) Ltd,146784,26/04/2012,10166423
Sustainable Environment,Environmental Protection FPNs,REG20,New Equipment,0300,2500.00,Mallard Consultancy Ltd,146807,04/04/2012,10165333
Resources & Corporate Governance ,IT Procurement,CMP00,IT Capital Expenditure,5025,1378.00,Regentcomms Ltd,146821,26/04/2012,10166290
Economy Development & Culture,Art Gallery and Museum,AGM00,Postage & Distribution,0370,2.94,TNT Post Midlands Ltd,146983,04/04/2012,10165059
Economy Development & Culture,Building Control Services,BCS00,Postage & Distribution,0370,3.19,TNT Post Midlands Ltd,146983,04/04/2012,10165059
Economy Development & Culture,Building Regulation Fee Earning Account,BCS99,Postage & Distribution,0370,4.24,TNT Post Midlands Ltd,146983,04/04/2012,10165059
Resources & Corporate Governance,Central Business Support Services,CSS15,Postage & Distribution,0370,33.17,TNT Post Midlands Ltd,146983,04/04/2012,10165059
Resources & Corporate Governance ,Council Tax and NNDR Collection,CTX01,Postage & Distribution,0370,370.83,TNT Post Midlands Ltd,146983,04/04/2012,10165059
Resources & Corporate Governance ,Electoral Registration,ERG00,Postage & Distribution,0370,0.53,TNT Post Midlands Ltd,146983,04/04/2012,10165059
Sustainable Inclusive Communities,Housing Benefit Administration,HBA00,Postage & Distribution,0370,163.66,TNT Post Midlands Ltd,146983,04/04/2012,10165059
Housing Revenue Account ,Supervision and Management General,MAN00,Postage & Distribution,0370,53.66,TNT Post Midlands Ltd,146983,04/04/2012,10165059
Economy Development & Culture,Planning General/Income,PLN00,Postage & Distribution,0370,30.44,TNT Post Midlands Ltd,146983,04/04/2012,10165059
Resources & Corporate Governance ,General Administration,WAD00,Postage & Distribution,0370,13.88,TNT Post Midlands Ltd,146983,04/04/2012,10165059
Economy Development & Culture,Building Control Services,BCS00,Postage & Distribution,0370,1.41,TNT Post Midlands Ltd,146983,12/04/2012,10165265
Economy Development & Culture,Building Regulation Fee Earning Account,BCS99,Postage & Distribution,0370,1.86,TNT Post Midlands Ltd,146983,12/04/2012,10165265
Resources & Corporate Governance,Central Business Support Services,CSS15,Postage & Distribution,0370,71.36,TNT Post Midlands Ltd,146983,12/04/2012,10165265
Resources & Corporate Governance ,Council Tax and NNDR Collection,CTX01,Postage & Distribution,0370,287.28,TNT Post Midlands Ltd,146983,12/04/2012,10165265
Resources & Corporate Governance ,Electoral Registration,ERG00,Postage & Distribution,0370,50.48,TNT Post Midlands Ltd,146983,12/04/2012,10165265
Sustainable Inclusive Communities,Housing Benefit Administration,HBA00,Postage & Distribution,0370,163.62,TNT Post Midlands Ltd,146983,12/04/2012,10165265
Housing Revenue Account ,Supervision and Management General,MAN00,Postage & Distribution,0370,254.51,TNT Post Midlands Ltd,146983,12/04/2012,10165265
Economy Development & Culture,Planning General/Income,PLN00,Postage & Distribution,0370,24.58,TNT Post Midlands Ltd,146983,12/04/2012,10165265
Resources & Corporate Governance ,General Administration,WAD00,Postage & Distribution,0370,1.32,TNT Post Midlands Ltd,146983,12/04/2012,10165265
Economy Development & Culture,Art Gallery and Museum,AGM00,Postage & Distribution,0370,177.60,TNT Post Midlands Ltd,146983,19/04/2012,10165906
Economy Development & Culture,Building Control Services,BCS00,Postage & Distribution,0370,2.94,TNT Post Midlands Ltd,146983,19/04/2012,10165906
Economy Development & Culture,Building Regulation Fee Earning Account,BCS99,Postage & Distribution,0370,3.90,TNT Post Midlands Ltd,146983,19/04/2012,10165906
Resources & Corporate Governance,Central Business Support Services,CSS15,Postage & Distribution,0370,87.58,TNT Post Midlands Ltd,146983,19/04/2012,10165906
Resources & Corporate Governance ,Council Tax and NNDR Collection,CTX01,Postage & Distribution,0370,183.12,TNT Post Midlands Ltd,146983,19/04/2012,10165906
Resources & Corporate Governance ,Electoral Registration,ERG00,Postage & Distribution,0370,180.91,TNT Post Midlands Ltd,146983,19/04/2012,10165906
Sustainable Inclusive Communities,Housing Benefit Administration,HBA00,Postage & Distribution,0370,146.67,TNT Post Midlands Ltd,146983,19/04/2012,10165906
Housing Revenue Account ,Supervision and Management General,MAN00,Postage & Distribution,0370,96.67,TNT Post Midlands Ltd,146983,19/04/2012,10165906
Economy Development & Culture,Planning General/Income,PLN00,Postage & Distribution,0370,18.51,TNT Post Midlands Ltd,146983,19/04/2012,10165906
Resources & Corporate Governance ,General Administration,WAD00,Postage & Distribution,0370,3.87,TNT Post Midlands Ltd,146983,19/04/2012,10165906
Economy Development & Culture,Art Gallery and Museum,AGM00,Postage & Distribution,0370,52.33,TNT Post Midlands Ltd,146983,26/04/2012,10166277
Economy Development & Culture,Building Control Services,BCS00,Postage & Distribution,0370,5.07,TNT Post Midlands Ltd,146983,26/04/2012,10166277
Economy Development & Culture,Building Regulation Fee Earning Account,BCS99,Postage & Distribution,0370,6.73,TNT Post Midlands Ltd,146983,26/04/2012,10166277
Resources & Corporate Governance,Central Business Support Services,CSS15,Postage & Distribution,0370,56.95,TNT Post Midlands Ltd,146983,26/04/2012,10166277
Resources & Corporate Governance ,Council Tax and NNDR Collection,CTX01,Postage & Distribution,0370,133.46,TNT Post Midlands Ltd,146983,26/04/2012,10166277
Resources & Corporate Governance ,Electoral Registration,ERG00,Postage & Distribution,0370,34.62,TNT Post Midlands Ltd,146983,26/04/2012,10166277
Sustainable Inclusive Communities,Housing Benefit Administration,HBA00,Postage & Distribution,0370,166.65,TNT Post Midlands Ltd,146983,26/04/2012,10166277
Housing Revenue Account ,Supervision and Management General,MAN00,Postage & Distribution,0370,1100.09,TNT Post Midlands Ltd,146983,26/04/2012,10166277
Economy Development & Culture,Planning General/Income,PLN00,Postage & Distribution,0370,50.93,TNT Post Midlands Ltd,146983,26/04/2012,10166277
Resources & Corporate Governance ,General Administration,WAD00,Postage & Distribution,0370,1.56,TNT Post Midlands Ltd,146983,26/04/2012,10166277
Resources & Corporate Governance ,WSU Depot,WDP00,Messing Facilities,0332,2900.00,Britcab Limited,146988,19/04/2012,10165674
Resources & Corporate Governance,Corporate Property R&M,CPA01,R&M External Contractors,0100,959.25,General Asphalte Company,147047,12/04/2012,10165930
,Balance Sheet,BS,Car Loan Scheme,9261,3498.95,REDACTED PERSONAL DATA,147067,26/04/2012,10166707
Housing Revenue Account ,Unplanned Maintenance and Repair,UMR00,R&M External Contractors,0100,1952.47,T. Clarke East Ltd,147073,04/04/2012,10165343
Housing Revenue Account ,Estate Management,MAN22,Movement Incentives,0454,59.72,T. Clarke East Ltd,147073,04/04/2012,10165343
Housing Revenue Account ,Unplanned Maintenance and Repair,UMR00,R&M External Contractors,0100,555.44,T. Clarke East Ltd,147073,12/04/2012,10165716
Housing Revenue Account ,Supervision and Management General,MAN00,Movement Incentives,0454,53.07,T. Clarke East Ltd,147073,12/04/2012,10165716
Housing Revenue Account ,Unplanned Maintenance and Repair,UMR00,R&M External Contractors,0100,1287.22,T. Clarke East Ltd,147073,19/04/2012,10166317
Capital Program ,Disabled Adaptations,HCR01,Capital Contract Payments,5000,147.28,T. Clarke East Ltd,147073,19/04/2012,10166317
Housing Revenue Account ,Unplanned Maintenance and Repair,UMR00,R&M External Contractors,0100,994.31,Alpha Electrical Midlands Ltd,147074,04/04/2012,10165565
Housing Revenue Account ,Unplanned Maintenance and Repair,UMR00,R&M External Contractors,0100,531.03,Alpha Electrical Midlands Ltd,147074,12/04/2012,10165721
Housing Revenue Account ,Unplanned Maintenance and Repair,UMR00,R&M External Contractors,0100,811.84,Alpha Electrical Midlands Ltd,147074,19/04/2012,10166323
Housing Revenue Account ,Supervision and Management General,MAN00,Movement Incentives,0454,17.46,Alpha Electrical Midlands Ltd,147074,19/04/2012,10166323
Housing Revenue Account ,Unplanned Maintenance and Repair,UMR00,R&M External Contractors,0100,1285.31,Alpha Electrical Midlands Ltd,147074,19/04/2012,10166324
Sustainable Inclusive Communities,Woodside Park,TVR00,R&M External Contractors,0100,358.64,Alpha Electrical Midlands Ltd,147074,26/04/2012,10166494
Housing Revenue Account ,Unplanned Maintenance and Repair,UMR00,R&M External Contractors,0100,313.32,Alpha Electrical Midlands Ltd,147074,26/04/2012,10166494
Sustainable Inclusive Communities,Woodside Park,TVR00,R&M External Contractors,0100,1003.18,Alpha Electrical Midlands Ltd,147074,26/04/2012,10166539
Housing Revenue Account ,Unplanned Maintenance and Repair,UMR00,R&M External Contractors,0100,1505.90,Alpha Electrical Midlands Ltd,147074,26/04/2012,10166539
Housing Revenue Account ,Unplanned Maintenance and Repair,UMR00,R&M External Contractors,0100,672.79,Alpha Electrical Midlands Ltd,147074,26/04/2012,10166754
Capital Program ,Kitchen Modifications,HIK10,Capital Contract Payments,5000,7950.00,CLC Contractors Ltd,147076,12/04/2012,10165431
Housing Revenue Account ,Repainting Schemes,UMR02,R&M External Contractors,0100,15358.35,CLC Contractors Ltd,147076,26/04/2012,10166679
Housing Revenue Account ,Gas Heating Systems,UMR01,R&M External Contractors,0100,27223.45,Integral UK Ltd,147080,12/04/2012,10165534
Capital Program ,Pettiver Crescent,PCH00,Capital Contract Payments,5000,1000.00,REDACTED PERSONAL DATA,147173,02/04/2012,10165188
,Balance Sheet,BS,Inland Revenue,9451,2418.97,HM Revenue & Customs,147177,26/04/2012,10166521
Capital Program ,Queen's Diamond Jubilee Leisure Centre Project,LEI03,Capital Contract Payments,5000,1500.00,B3 Architects,147190,04/04/2012,10165610
Capital Program ,Corporate Property Enhancements,CPE00,Capital Contract Payments,5000,1677.00,AirTech Controls Ltd,147262,04/04/2012,10165688
Economy Development & Culture,The Benn Hall,BHL00,Contract Cleaning,0170,41.00,SJ Cleaning (Midlands) Ltd,147273,12/04/2012,10165936
Sustainable Environment ,Cemeteries General,CEM00,Contract Cleaning,0170,33.00,SJ Cleaning (Midlands) Ltd,147273,12/04/2012,10165936
Economy Development & Culture,Car Parks General,CPK01,Contract Cleaning,0170,21.00,SJ Cleaning (Midlands) Ltd,147273,12/04/2012,10165936
Resources & Corporate Governance ,Town Hall,OFF00,Contract Cleaning,0170,373.00,SJ Cleaning (Midlands) Ltd,147273,12/04/2012,10165936
Economy Development & Culture,Town Centre Public Conveniences,PCS00,Contract Cleaning,0170,21.00,SJ Cleaning (Midlands) Ltd,147273,12/04/2012,10165936
Sustainable Environment ,Caldecott Park/Town Centre Area,PKS00,Contract Cleaning,0170,41.00,SJ Cleaning (Midlands) Ltd,147273,12/04/2012,10165936
Resources & Corporate Governance ,WSU Depot,WDP00,Contract Cleaning,0170,41.00,SJ Cleaning (Midlands) Ltd,147273,12/04/2012,10165936
Resources & Corporate Governance,Handy man,WHM00,Materials,0303,1254.57,ECA Supplies (Coventry) Limited,147276,12/04/2012,10165828
Resources & Corporate Governance,Handy man,WHM00,Tools,0304,799.95,ECA Supplies (Coventry) Limited,147276,12/04/2012,10165829
Resources & Corporate Governance,Handy man,WHM00,Materials,0303,788.85,ECA Supplies (Coventry) Limited,147276,12/04/2012,10165831
Resources & Corporate Governance,Handy man,WHM00,Tools,0304,53.40,ECA Supplies (Coventry) Limited,147276,12/04/2012,10165831
Resources & Corporate Governance,Housing Fencing,WFE00,External Contractor & Operator,0742,546.00,Stephen Lamb Fencing,147298,04/04/2012,10165676
Resources & Corporate Governance,Corporate Property R&M,CPA01,R&M External Contractors,0100,828.29,Stewart Groom Flooring,147316,04/04/2012,10165458
Capital Program ,Heating Upgrades,HIM01,Capital Contract Payments,5000,7923.18,Liberty Gas Group,147368,12/04/2012,10165418
Capital Program ,Heating Upgrades,HIM01,Capital Contract Payments,5000,7923.18,Liberty Gas Group,147368,12/04/2012,10165649
Capital Program ,Bathroom Modifications,HIS01,Capital Contract Payments,5000,9305.00,TSG Building Services Plc,147369,19/04/2012,10165877
Capital Program ,Bathroom Modifications,HIS01,Capital Contract Payments,5000,7238.15,TSG Building Services Plc,147369,19/04/2012,10165878
Capital Program ,Bathroom Modifications,HIS01,Capital Contract Payments,5000,7620.37,TSG Building Services Plc,147369,19/04/2012,10165879
Capital Program ,Bathroom Modifications,HIS01,Capital Contract Payments,5000,7805.35,TSG Building Services Plc,147369,19/04/2012,10165880
Capital Program ,Disabled Adaptations,HCR01,Capital Contract Payments,5000,4715.32,TSG Building Services Plc,147369,19/04/2012,10165881
Capital Program ,Disabled Adaptations,HCR01,Capital Contract Payments,5000,2473.08,TSG Building Services Plc,147369,19/04/2012,10165882
Housing Revenue Account ,Unplanned Maintenance and Repair,UMR00,R&M External Contractors,0100,1360.00,TSG Building Services Plc,147369,19/04/2012,10165883
Housing Revenue Account ,Unplanned Maintenance and Repair,UMR00,R&M External Contractors,0100,1495.52,TSG Building Services Plc,147369,19/04/2012,10165884
Housing Revenue Account ,Unplanned Maintenance and Repair,UMR00,R&M External Contractors,0100,631.52,TSG Building Services Plc,147369,19/04/2012,10165885
Resources & Corporate Governance ,Domestic Waste Collection,WWC00,Contract Hire,0220,1450.00,Trash UK Limited,147379,19/04/2012,10166288
Housing Revenue Account ,Supervision and Management General,MAN00,Consultancy Costs,0740,6305.00,Howard Ward Associates LLP,147433,19/04/2012,10165672
Resources & Corporate Governance,Handy man,WHM00,Materials,0303,554.70,Robert Pochin Limited,147536,19/04/2012,10164010
Resources & Corporate Governance,Handy man,WHM00,Materials,0303,997.38,Robert Pochin Limited,147536,04/04/2012,10165118
Resources & Corporate Governance,Handy man,WHM00,Materials,0303,595.35,Robert Pochin Limited,147536,12/04/2012,10165902
Capital Program ,Open Spaces Refurbishment,LEI08,Capital Contract Payments,5000,1190.82,Gavin Jones (Midlands) Ltd,147569,04/04/2012,10165501
Resources & Corporate Governance ,Financial Services,RES10,Subscriptions,0421,1575.00,LG Futures Ltd,147641,26/04/2012,10166282
Economy Development & Culture,Gypsy and Traveller Enforcement,PLN10,External Legal Costs,0741,2150.00,Mr Philip Williams,147753,04/04/2012,10165839
Resources & Corporate Governance ,Grounds Maintenance,WGM00,Vehicle Repair and Maintenance,0200,578.95,Chris Tallis Farm Machinery Limited,147758,04/04/2012,10164542
Sustainable Environment ,Recreation Grounds/Open Spaces,PKS01,External Contractor & Operator,0742,1312.50,Dave Bowcutt,147760,19/04/2012,10166370
Capital Program ,Viaduct Cycleways,CYC02,Capital Contract Payments,5000,61299.65,Currall Lewis & Martin (Construction) Ltd,147769,04/04/2012,10165587
Resources & Corporate Governance ,Highways,WHG00,External Contractor & Operator,0742,24623.72,Currall Lewis & Martin (Construction) Ltd,147769,04/04/2012,10165708
Resources & Corporate Governance ,"Communications, Consultation and Information Team",BTR20,Photographic Expenses,0355,900.00,Cole Creative Communications Ltd,147857,19/04/2012,10166284
Resources & Corporate Governance ,"Communications, Consultation and Information Team",BTR20,Publicity & Marketing,0377,2250.00,Cole Creative Communications Ltd,147857,19/04/2012,10166285
Resources & Corporate Governance,Housing Fencing,WFE00,External Contractor & Operator,0742,546.00,D Wesley Contracts,147871,04/04/2012,10165783
Resources & Corporate Governance ,Highways,WHG00,Tools,0304,3768.20,H S Jackson & Son (Fencing) Ltd,147882,04/04/2012,10165625
Resources & Corporate Governance,Handy man,WHM00,External Contractor & Operator,0742,537.00,Coventry Garage Doors,147883,26/04/2012,10166364
Resources & Corporate Governance ,Customer and Information Strategy,CIS10,Training fees,0011,1440.00,Quanta Training Ltd,147905,19/04/2012,10163935
Capital Program ,Pettiver Crescent,PCH00,Capital Contract Payments,5000,4700.00,REDACTED PERSONAL DATA,147907,04/04/2012,10165843
Capital Program ,Pettiver Crescent,PCH00,Capital Contract Payments,5000,1650.06,REDACTED PERSONAL DATA,147907,04/04/2012,10165844
Capital Program ,Youth Club Development,CGR05,Capital Grants,5014,2733.50,Cracker FM,147921,04/04/2012,10164132
Resources & Corporate Governance ,IT Procurement,CMP00,IT Capital Expenditure,5025,6088.00,Lloyds Business Communications Ltd,147928,04/04/2012,10165263
Capital Program ,Pettiver Crescent,PCH00,Capital Contract Payments,5000,4700.00,REDACTED PERSONAL DATA,147935,26/04/2012,10166668
Resources & Corporate Governance ,Domestic Waste Collection,WWC00,Agency Staff,0003,710.86,3b2 Recruitment Ltd T/A Darren Bell Recruitment,147938,26/04/2012,10166585
Economy Development & Culture,AGM Conservation/Documentation,AGM01,Other Miscellaneous Expenses,0444,937.00,Sara Stoll,147942,04/04/2012,10165420
Economy Development & Culture,AGM Conservation/Documentation,AGM01,Other Miscellaneous Expenses,0444,1050.11,Celia Withycombe Paper Conservation,147943,04/04/2012,10165417
Capital Program ,Purchase of Vehicles,VHC00,Miscellaneous Capital Expenditure,5020,13895.00,Global Sales,147961,19/04/2012,10166122
Resources & Corporate Governance ,Street Cleansing,WSC00,Vehicle Repair and Maintenance,0200,1088.56,Dell Equipment Ltd,147979,19/04/2012,10166295
Capital Program ,Pettiver Crescent,PCH00,Capital Contract Payments,5000,1000.00,REDACTED PERSONAL DATA,147985,02/04/2012,10165384
Capital Program ,Depot and Recycling Improvements,RCY02,External Contractor & Operator,0742,8277.51,G & S Transport & Construction Ltd,147995,12/04/2012,10166029
Economy Development & Culture,Grants and Subscriptions,LGS00,Grants To Voluntary Organisations,0720,500.00,Rugby Trampolining Club,147996,04/04/2012,10165600
Economy Development & Culture,Grants and Subscriptions,LGS00,Grants To Voluntary Organisations,0720,1000.00,Rugby Town Squash Club,147997,04/04/2012,10165597
Resources & Corporate Governance ,Head of Business Transformation,BTR00,New Equipment,0300,7175.00,Idox Information Solutions Ltd,148001,12/04/2012,10165876
Economy Development & Culture,Grants and Subscriptions,LGS00,Grants To Voluntary Organisations,0720,500.00,Katherine Green Photography,148005,04/04/2012,10165759
Capital Program ,Queen's Diamond Jubilee Leisure Centre Project,LEI03,Capital Contract Payments,5000,295041.21,Shepherd Construction Ltd,148014,12/04/2012,10165852
Resources & Corporate Governance ,TREE WORKS,WGM01,Tools,0304,4334.18,Buxtons Limited,148015,19/04/2012,10166149
Resources & Corporate Governance ,Highways,WHG00,External Contractor & Operator,0742,2125.00,Paul Blencowe,148017,12/04/2012,10166084
Resources & Corporate Governance ,Grounds Maintenance,WGM00,Vehicle Repair and Maintenance,0200,744.52,Paynes Garages Limited,148024,26/04/2012,10166459
Resources & Corporate Governance,Handy man,WHM00,External Contractor & Operator,0742,585.00,Dean Hudson,148035,26/04/2012,10166575
,Balance Sheet,BS,Car Loan Scheme,9261,3695.00,A Evans,148039,19/04/2012,10166406
,Balance Sheet,BS,Contributions To NNDR Pool,9476,1327850.00,Department for Communities & Local Govt,,12/04/2012,
,Balance Sheet,BS,Contributions To NNDR Pool,9476,1327850.00,Department for Communities & Local Govt,,19/04/2012,
